bitfinex/quotes_BTCUSD_20241222
["timestamp","ask_amount","ask_price","bid_price","bid_amount"]
[1734825839938,0.55288802,97121.0,97087.0,0.1262]
[1734825840181,0.55488802,97121.0,97087.0,0.1262]
[1734825840355,0.55688802,97121.0,97087.0,0.1262]
[1734825840561,0.5428364,97121.0,97087.0,0.1262]
[1734825840857,0.5378364,97121.0,97087.0,0.1262]
[1734825841004,0.5428364,97121.0,97087.0,0.1262]
[1734825841398,0.5378364,97121.0,97087.0,0.1262]
[1734825841597,0.5358364,97121.0,97087.0,0.1262]
[1734825841848,0.5388364,97121.0,97087.0,0.1262]
[1734825842096,0.6853364,97121.0,97087.0,0.0786]
[1734825842302,0.69938802,97121.0,97087.0,0.0786]
[1734825842475,0.69638802,97121.0,97087.0,0.0786]
[1734825842697,0.70938802,97121.0,97120.0,0.0010858]
[1734825842896,0.70038802,97121.0,97120.0,8.58e-05]
[1734825843278,0.70938802,97121.0,97120.0,0.0010858]
[1734825844866,0.71958114,97121.0,97120.0,0.0010858]
[1734825845057,0.81177602,97121.0,97120.0,0.0010858]
[1734825845483,0.91177602,97121.0,97120.0,0.0010858]
[1734825845882,0.91177602,97121.0,97120.0,8e-07]
[1734825846530,0.85140007,97121.0,97120.0,8e-07]
[1734825847135,0.43456,97106.0,97080.0,0.0786]
[1734825847249,0.35596,97106.0,97080.0,0.0786]
[1734825847455,0.35596,97106.0,97078.0,0.0476]
[1734825847456,0.20596,97106.0,97100.0,0.023]
[1734825848680,0.001,97106.0,97103.0,0.023]
[1734825849594,0.003,97106.0,97103.0,0.023]
[1734825849803,0.003,97106.0,97105.0,0.1013941]
[1734825850004,0.0009903,97125.0,97105.0,0.20402383]
[1734825850207,0.0009903,97125.0,97124.0,0.307522]
[1734825850405,0.09216794,97137.0,97126.0,0.205917]
[1734825850633,0.09216794,97137.0,97128.0,0.205913]
[1734825850906,0.09216794,97137.0,97128.0,0.3302214]
[1734825851334,0.0011611,97144.0,97128.0,0.3778214]
[1734825851536,0.0011611,97144.0,97143.0,0.228882]
[1734825851754,0.0001718,97144.0,97143.0,0.3301904]
[1734825851919,0.0001718,97144.0,97143.0,0.4068904]
[1734825853332,0.0011718,97144.0,97143.0,0.4138904]
[1734825853533,0.0011718,97144.0,97143.0,0.4068904]
[1734825853754,0.0021718,97144.0,97143.0,0.4148904]
[1734825854167,0.0001718,97144.0,97143.0,0.4068904]
[1734825854486,0.0011718,97144.0,97143.0,0.4188904]
[1734825854838,0.0011718,97144.0,97143.0,0.4158904]
[1734825855037,0.0011718,97144.0,97143.0,0.4188904]
[1734825855646,0.0001718,97144.0,97143.0,0.4098904]
[1734825855846,0.0011718,97144.0,97143.0,0.4178904]
[1734825856475,0.0011718,97144.0,97143.0,0.5178904]
[1734825857073,0.0011718,97144.0,97143.0,0.4178904]
[1734825858402,0.0011718,97144.0,97143.0,0.4148904]
[1734825858543,0.0001718,97144.0,97143.0,0.4098904]
[1734825858742,0.0011718,97144.0,97143.0,0.4178904]
[1734825862588,0.0011718,97144.0,97143.0,0.1123084]
[1734825862770,0.0011718,97144.0,97143.0,0.011]
[1734825864089,0.0011718,97144.0,97143.0,0.008]
[1734825864296,0.0011718,97144.0,97143.0,0.01]
[1734825864571,0.0011718,97144.0,97143.0,0.033]
[1734825864773,0.0011718,97144.0,97143.0,0.01]
[1734825864921,0.0011718,97144.0,97143.0,0.008]
[1734825865136,0.205897,97136.0,97122.0,0.20695548]
[1734825865338,0.205897,97136.0,97124.0,0.205922]
[1734825865539,0.205897,97136.0,97125.0,0.1013084]
[1734825865793,0.205909,97131.0,97125.0,0.1013084]
[1734825865939,0.205897,97136.0,97125.0,0.1013084]
[1734825865940,0.411794,97136.0,97125.0,0.1013084]
[1734825866117,0.205897,97136.0,97125.0,0.1013084]
[1734825866332,0.002169,97144.0,97126.0,0.02402948]
[1734825866526,0.002169,97144.0,97128.0,0.023]
[1734825866753,0.0011718,97144.0,97142.0,0.023]
[1734825866950,0.0011718,97144.0,97143.0,0.1243084]
[1734825867153,0.0001718,97144.0,97143.0,0.1243084]
[1734825868575,0.0001718,97144.0,97143.0,0.12533773]
[1734825868955,0.0001718,97144.0,97143.0,0.12633773]
[1734825869355,0.0011718,97144.0,97143.0,0.12633773]
[1734825869552,0.0001718,97144.0,97143.0,0.12633773]
[1734825870038,0.0011718,97144.0,97143.0,0.13533773]
[1734825870312,0.0011718,97144.0,97143.0,0.12533773]
[1734825870313,0.0001718,97144.0,97143.0,0.12533773]
[1734825870548,0.0011718,97144.0,97143.0,0.13633766]
[1734825871024,0.0011718,97144.0,97143.0,0.13333766]
[1734825871460,0.0011718,97144.0,97143.0,0.13633766]
[1734825872274,0.0011718,97144.0,97143.0,0.23633766]
[1734825872477,0.0011718,97144.0,97143.0,0.5648084]
[1734825873508,0.0011718,97144.0,97143.0,1.1554084]
[1734825874116,0.0011718,97144.0,97143.0,1.16567664]
[1734825874327,0.0009874,97191.0,97183.0,0.205796]
[1734825874493,0.0009874,97191.0,97184.0,0.023]
[1734825874494,0.00115079,97191.0,97184.0,0.023]
[1734825874699,0.00016339,97191.0,97184.0,0.023]
[1734825875079,0.00016339,97191.0,97183.0,0.205796]
[1734825875080,0.00016339,97191.0,97186.0,0.023]
[1734825875280,0.00016339,97191.0,97188.0,0.023]
[1734825875502,0.00016339,97191.0,97190.0,0.023]
[1734825875703,0.00016339,97191.0,97190.0,0.1243084]
[1734825877232,0.00033519,97191.0,97190.0,0.1243084]
[1734825877514,0.00033519,97191.0,97190.0,0.1263084]
[1734825878344,0.00033519,97191.0,97190.0,0.1303084]
[1734825878663,0.00033519,97191.0,97190.0,0.1263084]
[1734825879027,0.00033519,97191.0,97190.0,0.1313084]
[1734825879436,0.00033519,97191.0,97190.0,0.1243084]
[1734825879636,0.00033519,97191.0,97190.0,0.1313084]
[1734825880240,0.00033519,97191.0,97190.0,0.1343084]
[1734825880765,0.00033519,97191.0,97190.0,0.1363084]
[1734825884484,0.00033519,97191.0,97190.0,0.035]
[1734825884839,0.00033519,97191.0,97190.0,0.012]
[1734825885454,0.00033519,97191.0,97185.0,0.205791]
[1734825885651,0.00033519,97191.0,97187.0,0.411576]
[1734825885849,0.00133519,97191.0,97189.0,0.205784]
[1734825886039,0.00033519,97191.0,97190.0,0.1243084]
[1734825886442,0.00033519,97191.0,97190.0,0.1253084]
[1734825886655,0.00033519,97191.0,97190.0,0.1243084]
[1734825887392,0.00033519,97191.0,97190.0,0.1253084]
[1734825888556,0.00033519,97191.0,97190.0,0.1303084]
[1734825888939,0.00033519,97191.0,97190.0,0.1243084]
[1734825889142,0.00033519,97191.0,97190.0,0.1263084]
[1734825889497,0.00033519,97191.0,97190.0,0.1313084]
[1734825889767,0.00033519,97191.0,97190.0,0.1263084]
[1734825890172,0.00033519,97191.0,97190.0,0.1293084]
[1734825890636,0.00033519,97191.0,97190.0,0.1263084]
[1734825892143,0.00033519,97191.0,97190.0,0.1313084]
[1734825892528,0.00033519,97191.0,97190.0,0.1263084]
[1734825892678,0.00033519,97191.0,97190.0,0.1313084]
[1734825892898,0.00033519,97191.0,97190.0,0.1263084]
[1734825893100,0.00033519,97191.0,97190.0,0.1243084]
[1734825893309,0.00033519,97191.0,97190.0,0.1313084]
[1734825894204,0.00033519,97191.0,97190.0,0.12733722]
[1734825894618,0.00033519,97191.0,97190.0,0.12533722]
[1734825895024,0.00033519,97191.0,97190.0,0.12733717]
[1734825895580,0.00033519,97191.0,97190.0,0.14041333]
[1734825895785,0.00033519,97191.0,97190.0,0.14241333]
[1734825896123,0.00033519,97191.0,97190.0,0.14841333]
[1734825896321,0.00033519,97191.0,97190.0,0.13541333]
[1734825896708,0.00033519,97191.0,97190.0,0.14641333]
[1734825897734,0.00033519,97191.0,97190.0,0.14538456]
[1734825898957,0.00033519,97191.0,97190.0,0.1353084]
[1734825899529,0.00033519,97191.0,97190.0,0.13633719]
[1734825900799,0.00033519,97191.0,97190.0,0.2634084]
[1734825901495,0.00033519,97191.0,97190.0,0.2149084]
[1734825902735,0.00033519,97191.0,97190.0,0.3149084]
[1734825903183,0.00033519,97191.0,97190.0,0.4149084]
[1734825903513,0.00033519,97191.0,97190.0,0.3149084]
[1734825903717,0.00033519,97191.0,97190.0,0.4149084]
[1734825904754,0.00033519,97191.0,97190.0,0.5649084]
[1734825905980,0.00033519,97191.0,97190.0,1.1062084]
[1734825906745,0.00033519,97191.0,97190.0,1.12681253]
[1734825907594,0.0001716,97204.0,97203.0,0.947054]
[1734825907812,0.0001716,97222.0,97221.0,0.305716]
[1734825907951,0.00071581,97222.0,97221.0,1.0509244]
[1734825908152,0.00071581,97222.0,97221.0,1.1509244]
[1734825908601,0.00071581,97222.0,97221.0,1.3466244]
[1734825909120,0.00071581,97222.0,97221.0,1.35672072]
[1734825909509,0.00071581,97222.0,97221.0,1.36972072]
[1734825909714,0.00071581,97222.0,97221.0,1.36072072]
[1734825909938,0.00071581,97222.0,97221.0,1.35672072]
[1734825910143,0.00071581,97222.0,97221.0,1.38631981]
[1734825910722,0.0001,97249.0,97241.0,0.1811]
[1734825910919,0.00033483,97242.0,97241.0,0.6610824]
[1734825912225,0.00033483,97242.0,97241.0,0.5799824]
[1734825912472,0.00033483,97242.0,97241.0,0.4389824]
[1734825912645,0.00033483,97242.0,97241.0,0.3389824]
[1734825912843,0.00033483,97242.0,97241.0,0.3199824]
[1734825913911,0.00033483,97242.0,97241.0,0.4199824]
[1734825914293,0.00033483,97242.0,97241.0,0.4389824]
[1734825914694,0.00033483,97242.0,97241.0,0.4319824]
[1734825915015,0.00033483,97242.0,97241.0,0.4409824]
[1734825915218,0.00033483,97242.0,97241.0,0.4299824]
[1734825915422,0.00033483,97242.0,97241.0,0.4349824]
[1734825915653,0.00033483,97242.0,97241.0,0.4439824]
[1734825916004,0.00033483,97242.0,97241.0,0.4299824]
[1734825916208,0.00033483,97242.0,97241.0,0.4339824]
[1734825916461,0.00033483,97242.0,97241.0,0.4429824]
[1734825916661,0.00033483,97242.0,97241.0,0.7650824]
[1734825917956,0.00033483,97242.0,97241.0,0.7700824]
[1734825918173,0.00033483,97242.0,97241.0,0.7660824]
[1734825918542,0.00033483,97242.0,97241.0,0.7750824]
[1734825918741,0.00033483,97242.0,97241.0,0.7700824]
[1734825918935,0.00033483,97242.0,97241.0,0.7780824]
[1734825919359,0.00033483,97242.0,97241.0,0.7690824]
[1734825919583,0.00033483,97242.0,97241.0,0.7610824]
[1734825919766,0.00033483,97242.0,97241.0,0.7770824]
[1734825919963,0.00033483,97242.0,97241.0,0.4959824]
[1734825920172,0.00033483,97242.0,97241.0,0.5959824]
[1734825921066,0.00033483,97242.0,97241.0,0.6799824]
[1734825921239,0.00033483,97242.0,97241.0,1.2282824]
[1734825921460,0.00033483,97242.0,97241.0,1.2372824]
[1734825921682,0.00033483,97242.0,97241.0,1.2212824]
[1734825922117,0.00033483,97242.0,97241.0,1.2352824]
[1734825922316,0.00033483,97242.0,97241.0,1.2262824]
[1734825922516,0.00033483,97242.0,97241.0,1.2302824]
[1734825922731,0.00033483,97242.0,97241.0,1.2212824]
[1734825923033,8.3e-07,97242.0,97241.0,1.3198824]
[1734825923318,8.3e-07,97242.0,97241.0,1.3668824]
[1734825923864,8.3e-07,97242.0,97241.0,1.3598824]
[1734825924080,0.0001,97269.0,97268.0,0.2]
[1734825924276,0.0001,97269.0,97268.0,0.55793614]
[1734825924524,0.0001,97269.0,97268.0,0.7625254]
[1734825925117,0.0001,97269.0,97268.0,0.5879254]
[1734825925487,0.0001,97269.0,97268.0,0.5799254]
[1734825925714,0.0001,97269.0,97268.0,0.5949254]
[1734825925914,0.0001,97269.0,97268.0,0.3359254]
[1734825926321,0.0001,97269.0,97268.0,0.3449254]
[1734825927035,0.0001,97269.0,97268.0,0.1103084]
[1734825927506,0.0001,97269.0,97268.0,0.1053084]
[1734825927865,0.0001,97269.0,97268.0,0.1103084]
[1734825928382,0.0001,97269.0,97268.0,0.1143084]
[1734825928580,0.0001,97269.0,97268.0,0.004]
[1734825928767,0.0001,97269.0,97258.0,0.205638]
[1734825928923,0.0001,97269.0,97268.0,0.001]
[1734825929128,0.0001,97269.0,97268.0,0.004]
[1734825929326,0.0001,97269.0,97268.0,0.001]
[1734825930189,0.0001,97269.0,97260.0,0.20666205]
[1734825930391,0.0001,97269.0,97261.0,0.1013084]
[1734825930543,0.0001,97269.0,97268.0,0.001]
[1734825931153,0.0001,97269.0,97268.0,0.003]
[1734825931958,0.0766,97269.0,97268.0,0.003]
[1734825932158,0.0766,97269.0,97268.0,0.004]
[1734825934431,0.0766,97269.0,97268.0,0.1053084]
[1734825934662,0.0767714,97269.0,97268.0,0.1053084]
[1734825934849,0.0002714,97269.0,97268.0,0.1053084]
[1734825935559,0.0002714,97269.0,97268.0,0.12933642]
[1734825936778,0.0002714,97269.0,97268.0,0.12833642]
[1734825937188,0.0002714,97269.0,97268.0,0.13979433]
[1734825937526,0.0002714,97269.0,97268.0,0.48979433]
[1734825937840,0.0002714,97269.0,97268.0,0.48476631]
[1734825938044,0.0002714,97269.0,97268.0,0.48776631]
[1734825938190,0.0002714,97269.0,97268.0,0.49076631]
[1734825938390,0.0002714,97269.0,97268.0,0.48776631]
[1734825938633,0.0002714,97269.0,97268.0,0.49376631]
[1734825938970,0.0002714,97269.0,97268.0,0.48976631]
[1734825939267,0.0002714,97269.0,97268.0,1.04006631]
[1734825940010,0.0002714,97269.0,97268.0,0.94006631]
[1734825940210,0.0002714,97269.0,97268.0,0.93506631]
[1734825940400,0.0002714,97269.0,97268.0,0.93106631]
[1734825940609,0.0002714,97269.0,97268.0,0.88106631]
[1734825940816,0.0002714,97269.0,97268.0,0.89006631]
[1734825941022,0.0002714,97269.0,97268.0,0.77606631]
[1734825941221,0.0002714,97269.0,97268.0,0.67606631]
[1734825941421,0.0002714,97269.0,97268.0,0.66206631]
[1734825941596,0.0002714,97269.0,97268.0,0.66806631]
[1734825942381,0.0002714,97269.0,97268.0,0.12676631]
[1734825942587,0.0002714,97269.0,97268.0,0.1507942]
[1734825942990,0.0002714,97269.0,97268.0,0.1447942]
[1734825943262,0.0002714,97269.0,97268.0,0.1487942]
[1734825943490,0.0002714,97269.0,97268.0,0.1397942]
[1734825943905,0.0002714,97269.0,97268.0,0.1447942]
[1734825944108,0.0002714,97269.0,97268.0,0.1387942]
[1734825944319,0.0002714,97269.0,97268.0,0.1467942]
[1734825945914,0.0002714,97269.0,97268.0,0.1437942]
[1734825946353,0.0002714,97269.0,97268.0,0.1467942]
[1734825946530,0.0002714,97269.0,97268.0,0.1387942]
[1734825946733,0.0002714,97269.0,97268.0,0.1467942]
[1734825949481,0.0002714,97269.0,97268.0,0.1387942]
[1734825949713,0.0002714,97269.0,97268.0,0.1357942]
[1734825949956,0.0002714,97269.0,97268.0,0.1487942]
[1734825950237,0.0002714,97269.0,97268.0,0.1397942]
[1734825950387,0.0002714,97269.0,97268.0,0.1477942]
[1734825950586,0.0002714,97269.0,97268.0,0.1397942]
[1734825950810,0.0002714,97269.0,97268.0,0.1357942]
[1734825951055,0.0002714,97269.0,97268.0,0.1437942]
[1734825951213,0.0002714,97269.0,97268.0,0.1467942]
[1734825952598,0.0002714,97269.0,97268.0,0.1437942]
[1734825952810,0.0002714,97269.0,97268.0,0.1477942]
[1734825953015,0.0002714,97269.0,97268.0,0.1397942]
[1734825953445,0.0002714,97269.0,97268.0,0.1447942]
[1734825953692,0.0002714,97269.0,97268.0,0.1387942]
[1734825953917,0.0002714,97269.0,97268.0,0.1467942]
[1734825954167,0.0002714,97269.0,97268.0,0.1437942]
[1734825954361,0.0002714,97269.0,97268.0,0.1487942]
[1734825954769,0.0002714,97269.0,97268.0,0.1407942]
[1734825955159,0.0002714,97269.0,97268.0,0.1497942]
[1734825955359,0.0002714,97269.0,97268.0,0.14876631]
[1734825955575,0.0002714,97269.0,97268.0,0.1383084]
[1734825955730,0.0002714,97269.0,97268.0,0.1333084]
[1734825956131,0.0002714,97269.0,97268.0,0.1373084]
[1734825956394,0.0002714,97269.0,97268.0,0.1283084]
[1734825956726,0.0002714,97269.0,97268.0,0.1333084]
[1734825956872,0.0002714,97269.0,97268.0,0.1273084]
[1734825957074,0.0002714,97269.0,97268.0,0.1343084]
[1734825957259,0.0002714,97269.0,97268.0,0.13533631]
[1734825957437,0.0002714,97269.0,97268.0,0.12533631]
[1734825957639,0.0002714,97269.0,97268.0,0.13633631]
[1734825958936,0.0002714,97269.0,97268.0,0.13333631]
[1734825959139,0.0002714,97269.0,97268.0,0.13633631]
[1734825959339,0.0002714,97269.0,97268.0,0.12833631]
[1734825959539,0.0002714,97269.0,97268.0,0.12533631]
[1734825959958,0.0002714,97269.0,97268.0,0.12833631]
[1734825960130,0.0002714,97269.0,97268.0,0.13533631]
[1734825960438,0.0002714,97269.0,97268.0,0.12833631]
[1734825961005,0.0812714,97269.0,97268.0,0.1043084]
[1734825961390,0.0812714,97269.0,97268.0,0.1123084]
[1734825961800,0.0812714,97269.0,97268.0,0.008]
[1734825962215,0.0812714,97269.0,97268.0,0.011]
[1734825962638,0.0812714,97269.0,97268.0,0.1013084]
[1734825962839,0.0002714,97269.0,97268.0,0.1093084]
[1734825963067,0.0002714,97269.0,97268.0,0.10533632]
[1734825963271,0.0002714,97269.0,97268.0,0.12833632]
[1734825963499,0.0002714,97269.0,97268.0,0.13633632]
[1734825963687,0.0002714,97269.0,97268.0,0.12533632]
[1734825964131,0.0002714,97269.0,97268.0,0.13333633]
[1734825964343,0.0002714,97269.0,97268.0,0.12533633]
[1734825964769,0.0002714,97269.0,97268.0,0.1013084]
[1734825965398,0.0002714,97269.0,97268.0,0.1093084]
[1734825965624,0.0002714,97269.0,97268.0,0.1123084]
[1734825965829,0.0002714,97269.0,97268.0,0.1043084]
[1734825966091,0.0002714,97269.0,97268.0,0.1013084]
[1734825966300,0.0002714,97269.0,97268.0,0.1073084]
[1734825966505,0.0002714,97269.0,97268.0,0.1033084]
[1734825966921,0.0002714,97269.0,97268.0,0.1013084]
[1734825967275,0.0002714,97269.0,97268.0,0.1103084]
[1734825968615,0.0002714,97269.0,97268.0,0.1073084]
[1734825968832,0.0002714,97269.0,97268.0,0.1093084]
[1734825969051,0.0002714,97269.0,97268.0,0.1033084]
[1734825969254,0.0790714,97269.0,97268.0,0.005]
[1734825969590,0.0790714,97269.0,97268.0,0.002]
[1734825969795,0.0790714,97269.0,97268.0,0.007]
[1734825970025,0.0790714,97269.0,97259.0,0.00102807]
[1734825970200,0.0790714,97269.0,97260.0,0.3069424]
[1734825970431,0.0790714,97269.0,97268.0,0.007]
[1734825971744,0.0790714,97269.0,97268.0,0.005]
[1734825972619,0.0002714,97269.0,97268.0,0.001]
[1734825972986,0.0002714,97269.0,97268.0,0.1013084]
[1734825973403,0.0002714,97269.0,97268.0,0.1053084]
[1734825973604,0.0002714,97269.0,97268.0,0.1023084]
[1734825974038,0.0002714,97269.0,97268.0,0.1053084]
[1734825974240,0.0002714,97269.0,97268.0,0.1023084]
[1734825974408,0.0790714,97269.0,97268.0,0.001]
[1734825974778,0.1258714,97269.0,97268.0,0.001]
[1734825974989,0.1258714,97269.0,97250.0,0.29751293]
[1734825974990,0.1258714,97269.0,97258.0,0.205637]
[1734825975195,0.1258714,97269.0,97256.0,0.205642]
[1734825975196,0.1258714,97269.0,97259.0,0.1013084]
[1734825975400,0.0790714,97269.0,97268.0,0.002]
[1734825975621,0.0790714,97269.0,97268.0,0.1033084]
[1734825975822,0.0002714,97269.0,97268.0,0.1033084]
[1734825976229,0.0002714,97269.0,97268.0,0.1013084]
[1734825976942,0.0002714,97269.0,97268.0,0.1033084]
[1734825977150,0.0002714,97269.0,97268.0,0.1083084]
[1734825977786,0.0002714,97269.0,97268.0,0.1033084]
[1734825978434,0.0002714,97269.0,97268.0,0.12733639]
[1734825978636,0.0002714,97269.0,97268.0,0.12533639]
[1734825978995,0.0002714,97269.0,97268.0,0.12733639]
[1734825979199,0.0002714,97269.0,97268.0,0.13233639]
[1734825979403,0.0002714,97269.0,97268.0,0.12533639]
[1734825979621,0.0002714,97269.0,97268.0,0.13633639]
[1734825981565,0.0002714,97269.0,97268.0,0.13333639]
[1734825981967,0.0002714,97269.0,97268.0,0.13633639]
[1734825982176,0.0002714,97269.0,97268.0,0.12833639]
[1734825982353,0.0002714,97269.0,97268.0,0.13333639]
[1734825982750,0.0002714,97269.0,97268.0,0.13633639]
[1734825983178,0.0002714,97269.0,97268.0,0.12833639]
[1734825983724,0.0002714,97269.0,97268.0,0.13633639]
[1734825985195,0.0002714,97269.0,97268.0,0.1353084]
[1734825985319,0.0002714,97269.0,97268.0,0.1123084]
[1734825985520,0.0790714,97269.0,97268.0,0.011]
[1734825985715,0.1258714,97269.0,97268.0,0.011]
[1734825986510,0.0002714,97269.0,97268.0,0.011]
[1734825987654,0.0002714,97269.0,97268.0,0.008]
[1734825987848,0.0002714,97269.0,97268.0,0.011]
[1734825988455,0.0002714,97269.0,97268.0,0.11333646]
[1734825988659,0.0002714,97269.0,97268.0,0.13633638]
[1734825988921,0.0002714,97269.0,97268.0,0.12533638]
[1734825989106,0.0002714,97269.0,97268.0,0.13633638]
[1734825989312,0.0002714,97269.0,97268.0,0.12833638]
[1734825989713,0.0002714,97269.0,97268.0,0.13633638]
[1734825989918,0.0002714,97269.0,97268.0,0.12833638]
[1734825990257,0.0002714,97269.0,97268.0,0.13633638]
[1734825990606,0.0002714,97269.0,97268.0,0.13333638]
[1734825991014,0.0002714,97269.0,97268.0,0.13633638]
[1734825991922,0.0002714,97269.0,97268.0,0.12833638]
[1734825992100,0.0002714,97269.0,97268.0,0.13333638]
[1734825992437,0.0002714,97269.0,97268.0,0.13633638]
[1734826000748,0.0002714,97269.0,97268.0,0.1353084]
[1734826001274,0.0002714,97269.0,97268.0,0.1123084]
[1734826002272,0.0808714,97269.0,97268.0,0.011]
[1734826002496,0.0808714,97269.0,97268.0,0.003]
[1734826002676,0.0808714,97269.0,97268.0,0.011]
[1734826003065,0.0808714,97269.0,97268.0,0.008]
[1734826003309,0.0808714,97269.0,97268.0,0.011]
[1734826003510,0.0808714,97269.0,97268.0,0.003]
[1734826003989,0.0002714,97269.0,97268.0,0.007]
[1734826004498,0.0002714,97269.0,97268.0,0.004]
[1734826004705,0.0002714,97269.0,97268.0,0.006]
[1734826005089,0.0474714,97269.0,97268.0,0.002]
[1734826005299,0.0474714,97269.0,97268.0,0.006]
[1734826005300,0.1280714,97269.0,97268.0,0.006]
[1734826005501,0.1280714,97269.0,97268.0,0.002]
[1734826005861,0.2780714,97269.0,97268.0,0.006]
[1734826006064,0.2780714,97269.0,97254.0,0.09177423]
[1734826006265,0.205617,97268.0,97254.0,0.19308263]
[1734826006473,0.2780714,97269.0,97254.0,0.19308263]
[1734826006733,0.20563,97263.0,97254.0,0.19308263]
[1734826006920,0.41126,97263.0,97254.0,0.19308263]
[1734826007121,0.205639,97258.0,97254.0,0.09277423]
[1734826007329,0.205639,97258.0,97254.0,0.001]
[1734826007584,0.0806,97257.0,97254.0,0.001]
[1734826007796,0.0806,97257.0,97250.0,8.57e-05]
[1734826007944,0.25365001,97264.0,97250.0,8.57e-05]
[1734826007945,0.0806,97251.0,97250.0,8.57e-05]
[1734826008359,0.2306,97251.0,97250.0,8.57e-05]
[1734826008515,0.22987978,97251.0,97250.0,8.57e-05]
[1734826008924,0.22987978,97251.0,97250.0,0.0020857]
[1734826009125,0.27747978,97251.0,97250.0,0.0020857]
[1734826009447,0.27747978,97251.0,97250.0,8.57e-05]
[1734826009641,0.27747978,97251.0,97250.0,0.0050857]
[1734826009867,0.27747978,97251.0,97250.0,8.57e-05]
[1734826010228,0.2878746,97251.0,97250.0,8.57e-05]
[1734826010857,0.38004254,97251.0,97250.0,8.57e-05]
[1734826011739,0.36964772,97251.0,97250.0,8.57e-05]
[1734826012303,0.27747978,97251.0,97250.0,8.57e-05]
[1734826016667,0.0001714,97257.0,97250.0,8.57e-05]
[1734826016872,0.205642,97256.0,97250.0,8.57e-05]
[1734826018290,0.411285,97256.0,97250.0,8.57e-05]
[1734826020443,0.205642,97256.0,97250.0,8.57e-05]
[1734826020666,0.0001714,97257.0,97250.0,8.57e-05]
[1734826021076,0.205642,97256.0,97250.0,8.57e-05]
[1734826023242,0.0001714,97257.0,97250.0,8.57e-05]
[1734826023440,0.0001714,97257.0,97250.0,0.2057387]
[1734826024236,0.0001714,97257.0,97250.0,8.57e-05]
[1734826025161,0.0001714,97257.0,97255.0,0.205644]
[1734826025560,0.0001714,97257.0,97255.0,0.3069524]
[1734826025788,0.0001714,97257.0,97256.0,0.1013084]
[1734826026008,0.0001714,97257.0,97256.0,0.1023365]
[1734826026239,0.0001714,97257.0,97256.0,0.1253365]
[1734826026492,0.0001714,97257.0,97256.0,0.2065084]
[1734826026720,0.0001714,97257.0,97256.0,0.20753639]
[1734826026946,0.0001714,97257.0,97256.0,0.21769697]
[1734826027157,0.0001714,97257.0,97256.0,0.1243084]
[1734826027565,0.0001714,97257.0,97256.0,0.12533647]
[1734826027964,0.0001714,97257.0,97256.0,0.1013084]
[1734826028168,0.0001714,97257.0,97255.0,0.001]
[1734826028551,0.0001714,97257.0,97256.0,0.005]
[1734826028755,0.0001714,97257.0,97252.0,0.01046994]
[1734826028964,0.0001714,97257.0,97256.0,0.002]
[1734826029218,0.0001714,97257.0,97256.0,0.005]
[1734826029421,0.0001714,97257.0,97254.0,0.205647]
[1734826029629,0.0001714,97257.0,97256.0,0.004]
[1734826030444,0.0001714,97257.0,97256.0,0.003]
[1734826030884,0.0001714,97257.0,97256.0,0.12833657]
[1734826031093,0.0001714,97257.0,97256.0,0.20343657]
[1734826031528,0.0001714,97257.0,97256.0,0.20043657]
[1734826031920,0.0001714,97257.0,97256.0,0.20343657]
[1734826032106,0.0001714,97257.0,97256.0,0.25303643]
[1734826032337,0.0001714,97257.0,97256.0,0.2520084]
[1734826032581,0.0001714,97257.0,97256.0,0.2490084]
[1734826032790,0.0001714,97257.0,97256.0,0.2520084]
[1734826033007,0.0001714,97257.0,97256.0,0.3610084]
[1734826033182,0.0001714,97257.0,97256.0,0.3490084]
[1734826033626,0.0001714,97257.0,97256.0,1.0503084]
[1734826033836,0.0001714,97257.0,97256.0,1.1503084]
[1734826034674,0.0001714,97257.0,97256.0,1.1433084]
[1734826034879,0.0001714,97257.0,97256.0,1.1523084]
[1734826035289,0.0001714,97257.0,97256.0,1.1433084]
[1734826035494,0.0001714,97257.0,97256.0,1.1493084]
[1734826035946,0.0001714,97257.0,97256.0,1.1403084]
[1734826036153,0.0001714,97257.0,97256.0,1.1493084]
[1734826036361,0.0001714,97257.0,97256.0,1.1463084]
[1734826036543,0.0001714,97257.0,97256.0,1.1553084]
[1734826036785,0.0001714,97257.0,97256.0,1.1493084]
[1734826036933,0.0002714,97269.0,97268.0,0.703317]
[1734826037154,0.0002714,97269.0,97268.0,1.3459254]
[1734826037522,0.0002714,97269.0,97268.0,1.1459254]
[1734826037717,0.0002714,97269.0,97268.0,1.0959254]
[1734826038290,0.0002714,97269.0,97268.0,0.9463254]
[1734826038743,0.0002714,97269.0,97268.0,0.9553254]
[1734826038916,0.0002714,97269.0,97268.0,0.9463254]
[1734826039150,0.0002714,97269.0,97268.0,0.95645721]
[1734826039372,0.0002714,97269.0,97268.0,0.96545721]
[1734826039583,0.0002714,97269.0,97268.0,0.88135721]
[1734826039801,0.0002714,97269.0,97268.0,0.88635721]
[1734826040008,0.0002714,97269.0,97268.0,0.89535721]
[1734826040222,0.0002714,97269.0,97268.0,0.89035721]
[1734826040414,0.0002714,97269.0,97268.0,0.89635721]
[1734826041047,0.0002714,97269.0,97268.0,0.88735721]
[1734826041432,0.0002714,97269.0,97268.0,0.35505721]
[1734826041580,0.0002714,97269.0,97268.0,0.34005721]
[1734826041818,0.0002714,97269.0,97268.0,0.34905721]
[1734826042022,0.0002714,97269.0,97268.0,0.45405721]
[1734826042231,0.0002714,97269.0,97268.0,0.44505721]
[1734826042555,0.0002714,97269.0,97268.0,0.44905721]
[1734826042736,0.0002714,97269.0,97268.0,0.45505721]
[1734826043194,0.0002714,97269.0,97268.0,0.44905721]
[1734826043605,0.0002714,97269.0,97268.0,0.45505721]
[1734826044484,0.0002714,97269.0,97268.0,0.89635721]
[1734826044692,0.0002714,97269.0,97268.0,0.88135721]
[1734826045074,0.0002714,97269.0,97268.0,0.88635721]
[1734826045227,0.0002714,97269.0,97268.0,0.89535721]
[1734826045422,0.0002714,97269.0,97268.0,0.88135721]
[1734826045746,0.0002714,97269.0,97268.0,0.89535721]
[1734826046171,0.0002714,97269.0,97268.0,0.89035721]
[1734826046521,0.0002714,97269.0,97268.0,0.89435721]
[1734826046939,0.0002714,97269.0,97268.0,0.88535721]
[1734826048236,0.0002714,97269.0,97268.0,1.09035721]
[1734826048461,0.0002714,97269.0,97268.0,1.31325721]
[1734826048658,0.0002714,97269.0,97268.0,1.36825721]
[1734826048892,0.0002714,97269.0,97268.0,1.37725721]
[1734826049038,0.0002714,97269.0,97268.0,1.36225721]
[1734826049248,0.0002714,97269.0,97268.0,1.36825721]
[1734826049495,1e-08,97270.0,97269.0,0.8913]
[1734826049668,1e-08,97270.0,97269.0,1.0975084]
[1734826050269,0.0002716,97289.0,97284.0,0.637483]
[1734826050481,0.00024887,97285.0,97284.0,0.8107914]
[1734826052229,0.00024887,97285.0,97284.0,0.8197914]